[Event "Titled Tuesday Blitz May 11 2021"]
[White "Grandelius, Nils"]
[Black "Annaberdiyev, Babageldi"]
[WhiteFideId "1710400"]
[BlackFideId "14000385"]
[WhiteElo "2651"]
[BlackElo "2332"]
[Result "1-0"]
[Round "07"]
[TimeControl "180+1"]
[Date "2021.05.11"]
[WhiteClock "0:00:17"]
[BlackClock "0:00:01"]

1. Nf3 {[%clk 0:03:00]}  c5 {[%clk 0:02:58]} 2. e3 {[%clk 0:03:00]}  e6 {[%clk 0:02:54]} 3. d4 {[%clk 0:02:59]}  d5 {[%clk 0:02:54]} 4. Nbd2 {[%clk 0:02:59]}  Nf6 {[%clk 0:02:53]} 5. c3 {[%clk 0:02:55]}  Nc6 {[%clk 0:02:48]} 6. Bd3 {[%clk 0:02:55]}  Bd6 {[%clk 0:02:45]} 7. O-O {[%clk 0:02:55]}  O-O {[%clk 0:02:42]} 8. dxc5 {[%clk 0:02:54]}  Bxc5 {[%clk 0:02:41]} 9. e4 {[%clk 0:02:55]}  b6 {[%clk 0:02:08]} 10. Qe2 {[%clk 0:02:29]}  Bb7 {[%clk 0:02:02]} 11. e5 {[%clk 0:02:27]}  Nd7 {[%clk 0:02:01]} 12. Nb3 {[%clk 0:02:23]}  Be7 {[%clk 0:01:59]} 13. Bf4 {[%clk 0:02:22]}  Nc5 {[%clk 0:01:54]} 14. Nxc5 {[%clk 0:02:21]}  bxc5 {[%clk 0:01:55]} 15. Rad1 {[%clk 0:02:21]}  a5 {[%clk 0:01:50]} 16. Rfe1 {[%clk 0:02:05]}  a4 {[%clk 0:01:47]} 17. Qe3 {[%clk 0:01:45]}  Ba6 {[%clk 0:01:41]} 18. Bc2 {[%clk 0:01:36]}  Rb8 {[%clk 0:01:40]} 19. Bxa4 {[%clk 0:01:34]}  Qc7 {[%clk 0:01:27]} 20. Rd2 {[%clk 0:01:21]}  Na5 {[%clk 0:01:26]} 21. b3 {[%clk 0:01:21]}  Rfd8 {[%clk 0:01:16]} 22. h4 {[%clk 0:01:20]}  Bb7 {[%clk 0:01:10]} 23. h5 {[%clk 0:01:17]}  h6 {[%clk 0:01:00]} 24. Nh2 {[%clk 0:01:17]}  d4 {[%clk 0:00:57]} 25. cxd4 {[%clk 0:01:13]}  cxd4 {[%clk 0:00:58]} 26. Rxd4 {[%clk 0:01:05]}  Rxd4 {[%clk 0:00:59]} 27. Qxd4 {[%clk 0:01:06]}  Nc6 {[%clk 0:00:59]} 28. Qc4 {[%clk 0:01:00]}  Qa5 {[%clk 0:00:59]} 29. Nf3 {[%clk 0:00:57]}  Nb4 {[%clk 0:00:47]} 30. a3 {[%clk 0:00:55]}  Nd5 {[%clk 0:00:40]} 31. Bd2 {[%clk 0:00:55]}  Qa7 {[%clk 0:00:38]} 32. Qg4 {[%clk 0:00:52]}  Kh8 {[%clk 0:00:34]} 33. Bb4 {[%clk 0:00:37]}  Bxb4 {[%clk 0:00:28]} 34. axb4 {[%clk 0:00:38]}  Nxb4 {[%clk 0:00:27]} 35. Qxb4 {[%clk 0:00:34]}  Bxf3 {[%clk 0:00:27]} 36. Qh4 {[%clk 0:00:32]}  Bd5 {[%clk 0:00:22]} 37. Re3 {[%clk 0:00:31]}  Qc5 {[%clk 0:00:18]} 38. Qf4 {[%clk 0:00:30]}  Qc1+ {[%clk 0:00:09]} 39. Kh2 {[%clk 0:00:30]}  Kg8 {[%clk 0:00:09]} 40. b4 {[%clk 0:00:23]}  Qb2 {[%clk 0:00:07]} 41. b5 {[%clk 0:00:20]}  Rc8 {[%clk 0:00:04]} 42. Rg3 {[%clk 0:00:20]}  Rc4 {[%clk 0:00:01]} 43. Qf6 {[%clk 0:00:17]} 1-0


[Site "https://www.chess.com"]

[Event "Titled Tuesday Blitz May 11 2021"]
[White "Lintchevski, Daniil"]
[Black "Ortiz Suarez, Isan Reynaldo"]
[WhiteFideId "4171055"]
[BlackFideId "3507165"]
[WhiteElo "2505"]
[BlackElo "2539"]
[Result "1-0"]
[Round "07"]
[TimeControl "180+1"]
[Date "2021.05.11"]
[WhiteClock "0:01:19"]
[BlackClock "0:01:41"]

1. e4 {[%clk 0:03:00]}  c5 {[%clk 0:02:59]} 2. d4 {[%clk 0:03:00]}  cxd4 {[%clk 0:02:59]} 3. Nf3 {[%clk 0:03:01]}  d6 {[%clk 0:02:58]} 4. Nxd4 {[%clk 0:03:01]}  Nf6 {[%clk 0:02:57]} 5. Nc3 {[%clk 0:03:01]}  a6 {[%clk 0:02:58]} 6. Be3 {[%clk 0:03:00]}  e6 {[%clk 0:02:56]} 7. Be2 {[%clk 0:02:58]}  Qc7 {[%clk 0:02:55]} 8. f4 {[%clk 0:02:54]}  b5 {[%clk 0:02:55]} 9. Bf3 {[%clk 0:02:54]}  Bb7 {[%clk 0:02:54]} 10. a3 {[%clk 0:02:21]}  Be7 {[%clk 0:02:53]} 11. g4 {[%clk 0:02:20]}  Nc6 {[%clk 0:02:52]} 12. g5 {[%clk 0:02:20]}  Nd7 {[%clk 0:02:52]} 13. Qe2 {[%clk 0:02:13]}  O-O {[%clk 0:02:51]} 14. O-O-O {[%clk 0:02:09]}  Na5 {[%clk 0:02:39]} 15. h4 {[%clk 0:02:03]}  Rfe8 {[%clk 0:02:35]} 16. g6 {[%clk 0:02:02]}  Bf6 {[%clk 0:02:33]} 17. gxf7+ {[%clk 0:02:01]}  Kxf7 {[%clk 0:02:34]} 18. Ndxb5 {[%clk 0:01:45]}  axb5 {[%clk 0:02:31]} 19. Nxb5 {[%clk 0:01:46]}  Qb8 {[%clk 0:02:26]} 20. Nxd6+ {[%clk 0:01:40]}  Kg8 {[%clk 0:02:22]} 21. e5 {[%clk 0:01:40]}  Bxf3 {[%clk 0:02:18]} 22. Qxf3 {[%clk 0:01:41]}  Nxe5 {[%clk 0:02:15]} 23. fxe5 {[%clk 0:01:23]}  Rd8 {[%clk 0:01:43]} 24. exf6 {[%clk 0:01:21]}  Rxd6 {[%clk 0:01:43]} 25. Rxd6 {[%clk 0:01:20]}  Qxd6 {[%clk 0:01:41]} 26. Qxa8+ {[%clk 0:01:19]} 1-0


[Site "https://www.chess.com"]

[Event "Titled Tuesday Blitz May 11 2021"]
[White "Matlakov, Maxim"]
[Black "Goltsev, Dmitry"]
[WhiteFideId "4168003"]
[BlackFideId "24176710"]
[WhiteElo "2760"]
[BlackElo "2366"]
[Result "1-0"]
[Round "07"]
[TimeControl "180+1"]
[Date "2021.05.11"]
[WhiteClock "0:01:55"]
[BlackClock "0:00:54"]

1. c4 {[%clk 0:03:00]}  Nf6 {[%clk 0:02:59]} 2. Nc3 {[%clk 0:03:00]}  e5 {[%clk 0:02:59]} 3. Nf3 {[%clk 0:02:59]}  Nc6 {[%clk 0:03:00]} 4. d3 {[%clk 0:02:59]}  d6 {[%clk 0:02:57]} 5. g3 {[%clk 0:02:57]}  h6 {[%clk 0:02:57]} 6. Bg2 {[%clk 0:02:56]}  g6 {[%clk 0:02:57]} 7. O-O {[%clk 0:02:56]}  Bg7 {[%clk 0:02:57]} 8. Rb1 {[%clk 0:02:50]}  O-O {[%clk 0:02:55]} 9. b4 {[%clk 0:02:50]}  Bd7 {[%clk 0:02:49]} 10. b5 {[%clk 0:02:48]}  Ne7 {[%clk 0:02:49]} 11. a4 {[%clk 0:02:47]}  c6 {[%clk 0:02:43]} 12. Ba3 {[%clk 0:02:44]}  Qc7 {[%clk 0:02:39]} 13. Nd2 {[%clk 0:02:42]}  Rfb8 {[%clk 0:02:36]} 14. Qc2 {[%clk 0:02:39]}  Nf5 {[%clk 0:02:32]} 15. e3 {[%clk 0:02:38]}  a6 {[%clk 0:02:15]} 16. bxc6 {[%clk 0:02:25]}  Bxc6 {[%clk 0:02:12]} 17. Nde4 {[%clk 0:02:14]}  Nxe4 {[%clk 0:01:55]} 18. Nxe4 {[%clk 0:02:13]}  h5 {[%clk 0:01:44]} 19. h3 {[%clk 0:02:11]}  Qd7 {[%clk 0:01:30]} 20. a5 {[%clk 0:02:08]}  Rc8 {[%clk 0:01:30]} 21. Qd2 {[%clk 0:02:01]}  Kh8 {[%clk 0:01:09]} 22. Rb6 {[%clk 0:02:00]}  d5 {[%clk 0:01:02]} 23. Nc5 {[%clk 0:01:57]}  Qd6 {[%clk 0:00:54]} 24. cxd5 {[%clk 0:01:55]} 1-0


[Site "https://www.chess.com"]

[Event "Titled Tuesday Blitz May 11 2021"]
[White "Mikhalevski, Victor"]
[Black "Xiong, Jeffery"]
[WhiteFideId "2801914"]
[BlackFideId "2047640"]
[WhiteElo "2567"]
[BlackElo "2724"]
[Result "0-1"]
[Round "07"]
[TimeControl "180+1"]
[Date "2021.05.11"]
[WhiteClock "0:01:27"]
[BlackClock "0:01:22"]

1. Nf3 {[%clk 0:03:00]}  c5 {[%clk 0:02:57]} 2. g3 {[%clk 0:03:00]}  Nc6 {[%clk 0:02:57]} 3. d4 {[%clk 0:03:00]}  cxd4 {[%clk 0:02:57]} 4. Nxd4 {[%clk 0:03:01]}  g6 {[%clk 0:02:57]} 5. Bg2 {[%clk 0:02:59]}  Bg7 {[%clk 0:02:57]} 6. Nxc6 {[%clk 0:02:58]}  dxc6 {[%clk 0:02:58]} 7. O-O {[%clk 0:02:58]}  Qxd1 {[%clk 0:02:50]} 8. Rxd1 {[%clk 0:02:57]}  Bg4 {[%clk 0:02:51]} 9. Bf3 {[%clk 0:02:54]}  Bxf3 {[%clk 0:02:44]} 10. exf3 {[%clk 0:02:54]}  Rd8 {[%clk 0:02:41]} 11. Rxd8+ {[%clk 0:02:52]}  Kxd8 {[%clk 0:02:42]} 12. c3 {[%clk 0:02:51]}  Nf6 {[%clk 0:02:38]} 13. Nd2 {[%clk 0:02:49]}  Kc8 {[%clk 0:02:38]} 14. Nc4 {[%clk 0:02:48]}  Rd8 {[%clk 0:02:37]} 15. Bf4 {[%clk 0:02:48]}  Nd5 {[%clk 0:02:36]} 16. Be5 {[%clk 0:02:46]}  Bxe5 {[%clk 0:02:26]} 17. Nxe5 {[%clk 0:02:45]}  f6 {[%clk 0:02:27]} 18. Nc4 {[%clk 0:02:42]}  Nb6 {[%clk 0:02:27]} 19. Nxb6+ {[%clk 0:02:41]}  axb6 {[%clk 0:02:28]} 20. Re1 {[%clk 0:02:40]}  e5 {[%clk 0:02:26]} 21. Re2 {[%clk 0:02:32]}  Rd1+ {[%clk 0:02:23]} 22. Kg2 {[%clk 0:02:32]}  Kd7 {[%clk 0:02:24]} 23. h4 {[%clk 0:02:29]}  b5 {[%clk 0:02:19]} 24. a3 {[%clk 0:02:26]}  Kd6 {[%clk 0:02:14]} 25. f4 {[%clk 0:02:23]}  exf4 {[%clk 0:02:10]} 26. gxf4 {[%clk 0:02:23]}  Rb1 {[%clk 0:02:06]} 27. Rd2+ {[%clk 0:02:16]}  Kc5 {[%clk 0:02:04]} 28. Rd7 {[%clk 0:02:11]}  Rxb2 {[%clk 0:02:03]} 29. Rxb7 {[%clk 0:02:10]}  Rb3 {[%clk 0:02:01]} 30. Rxh7 {[%clk 0:02:09]}  Rxc3 {[%clk 0:01:55]} 31. Rh6 {[%clk 0:02:09]}  Rxa3 {[%clk 0:01:52]} 32. Rxg6 {[%clk 0:02:08]}  b4 {[%clk 0:01:52]} 33. Rg8 {[%clk 0:01:50]}  b3 {[%clk 0:01:39]} 34. Rb8 {[%clk 0:01:48]}  Kc4 {[%clk 0:01:39]} 35. h5 {[%clk 0:01:48]}  Ra5 {[%clk 0:01:32]} 36. h6 {[%clk 0:01:42]}  Rh5 {[%clk 0:01:33]} 37. Rb6 {[%clk 0:01:42]}  c5 {[%clk 0:01:22]} 38. Rxf6 {[%clk 0:01:40]}  b2 {[%clk 0:01:22]} 39. Rb6 {[%clk 0:01:39]}  Kc3 {[%clk 0:01:23]} 40. Kg3 {[%clk 0:01:39]}  Rxh6 {[%clk 0:01:23]} 41. Rb8 {[%clk 0:01:32]}  Kc2 {[%clk 0:01:22]} 42. Kf3 {[%clk 0:01:28]}  b1=Q {[%clk 0:01:22]} 43. Rxb1 {[%clk 0:01:27]}  Kxb1 {[%clk 0:01:23]} 44. Ke4 {[%clk 0:01:27]}  Rd6 {[%clk 0:01:23]} 45. Ke5 {[%clk 0:01:27]}  Rd2 {[%clk 0:01:22]} 0-1


[Site "https://www.chess.com"]

[Event "Titled Tuesday Blitz May 11 2021"]
[White "Mohammad Fahad, Rahman"]
[Black "Debashis, Das"]
[WhiteFideId "10207791"]
[BlackFideId "5024854"]
[WhiteElo "2323"]
[BlackElo "2470"]
[Result "1/2-1/2"]
[Round "07"]
[TimeControl "180+1"]
[Date "2021.05.11"]
[WhiteClock "0:00:56"]
[BlackClock "0:00:05"]

1. e4 {[%clk 0:03:00]}  c5 {[%clk 0:03:00]} 2. Nf3 {[%clk 0:03:01]}  d6 {[%clk 0:03:00]} 3. d4 {[%clk 0:03:01]}  cxd4 {[%clk 0:03:01]} 4. Qxd4 {[%clk 0:03:01]}  Nf6 {[%clk 0:03:01]} 5. c4 {[%clk 0:03:01]}  Nc6 {[%clk 0:02:56]} 6. Qe3 {[%clk 0:03:01]}  Bg4 {[%clk 0:02:56]} 7. Be2 {[%clk 0:03:01]}  g6 {[%clk 0:02:44]} 8. O-O {[%clk 0:03:00]}  Bxf3 {[%clk 0:02:39]} 9. Bxf3 {[%clk 0:03:01]}  Bg7 {[%clk 0:02:40]} 10. Rd1 {[%clk 0:03:02]}  Nd7 {[%clk 0:02:40]} 11. Nc3 {[%clk 0:02:48]}  O-O {[%clk 0:02:39]} 12. b3 {[%clk 0:02:47]}  Qb6 {[%clk 0:01:30]} 13. Qe1 {[%clk 0:02:46]}  Nd4 {[%clk 0:01:19]} 14. Bg4 {[%clk 0:02:16]}  Ne5 {[%clk 0:00:42]} 15. Na4 {[%clk 0:01:54]}  Qc6 {[%clk 0:00:31]} 16. Bb2 {[%clk 0:01:54]}  Nc2 {[%clk 0:00:29]} 17. Qe2 {[%clk 0:01:41]}  Nxa1 {[%clk 0:00:29]} 18. Bxa1 {[%clk 0:01:42]}  Nxg4 {[%clk 0:00:28]} 19. Bxg7 {[%clk 0:01:43]}  Kxg7 {[%clk 0:00:28]} 20. Qxg4 {[%clk 0:01:44]}  b5 {[%clk 0:00:27]} 21. cxb5 {[%clk 0:01:38]}  Qxb5 {[%clk 0:00:28]} 22. Nc3 {[%clk 0:01:39]}  Qe5 {[%clk 0:00:27]} 23. Nd5 {[%clk 0:01:38]}  e6 {[%clk 0:00:27]} 24. Ne3 {[%clk 0:01:35]}  Rfd8 {[%clk 0:00:24]} 25. h4 {[%clk 0:01:32]}  h5 {[%clk 0:00:20]} 26. Qf3 {[%clk 0:01:32]}  Rac8 {[%clk 0:00:17]} 27. Nc4 {[%clk 0:01:32]}  Qf6 {[%clk 0:00:14]} 28. Qe3 {[%clk 0:01:32]}  d5 {[%clk 0:00:12]} 29. e5 {[%clk 0:01:32]}  Qxh4 {[%clk 0:00:12]} 30. Nd6 {[%clk 0:01:32]}  Rc2 {[%clk 0:00:11]} 31. Qxa7 {[%clk 0:01:32]}  Rd7 {[%clk 0:00:06]} 32. Qe3 {[%clk 0:01:30]}  Rxa2 {[%clk 0:00:05]} 33. Qf3 {[%clk 0:01:28]}  d4 {[%clk 0:00:03]} 34. g3 {[%clk 0:01:26]}  Qg4 {[%clk 0:00:04]} 35. Qxg4 {[%clk 0:01:25]}  hxg4 {[%clk 0:00:05]} 36. Rxd4 {[%clk 0:01:26]}  Kf8 {[%clk 0:00:03]} 37. Rxg4 {[%clk 0:01:25]}  Rb2 {[%clk 0:00:04]} 38. b4 {[%clk 0:01:25]}  Ke7 {[%clk 0:00:04]} 39. Rc4 {[%clk 0:01:20]}  Rxd6 {[%clk 0:00:04]} 40. exd6+ {[%clk 0:01:19]}  Kxd6 {[%clk 0:00:05]} 41. Kg2 {[%clk 0:01:17]}  f5 {[%clk 0:00:04]} 42. g4 {[%clk 0:01:13]}  g5 {[%clk 0:00:04]} 43. gxf5 {[%clk 0:01:12]}  exf5 {[%clk 0:00:04]} 44. Rc5 {[%clk 0:01:13]}  Ke6 {[%clk 0:00:04]} 45. Rb5 {[%clk 0:01:12]}  g4 {[%clk 0:00:05]} 46. Kg3 {[%clk 0:01:12]}  Rb3+ {[%clk 0:00:04]} 47. Kg2 {[%clk 0:01:12]}  f4 {[%clk 0:00:04]} 48. Rg5 {[%clk 0:01:12]}  g3 {[%clk 0:00:04]} 49. fxg3 {[%clk 0:01:07]}  fxg3 {[%clk 0:00:05]} 50. b5 {[%clk 0:01:07]}  Kd6 {[%clk 0:00:05]} 51. Rh5 {[%clk 0:01:03]}  Kc7 {[%clk 0:00:05]} 52. Rg5 {[%clk 0:00:56]}  Kb6 {[%clk 0:00:05]} 53. Rf5 {[%clk 0:00:56]}  Rxb5 {[%clk 0:00:04]} 54. Rf6+ {[%clk 0:00:57]}  Ka5 {[%clk 0:00:05]} 55. Kxg3 {[%clk 0:00:57]}  Rb6 {[%clk 0:00:05]} 56. Rxb6 {[%clk 0:00:56]}  Kxb6 {[%clk 0:00:05]} 1/2-1/2


[Site "https://www.chess.com"]

[Event "Titled Tuesday Blitz May 11 2021"]
[White "Narayanan.S.L"]
[Black "Belous, Vladimir"]
[WhiteFideId "5058422"]
[BlackFideId "4174003"]
[WhiteElo "2617"]
[BlackElo "2583"]
[Result "1/2-1/2"]
[Round "07"]
[TimeControl "180+1"]
[Date "2021.05.11"]
[WhiteClock "0:00:50"]
[BlackClock "0:01:35"]

1. c4 {[%clk 0:03:00]}  c5 {[%clk 0:02:59]} 2. Nc3 {[%clk 0:03:00]}  g6 {[%clk 0:02:59]} 3. g3 {[%clk 0:02:59]}  Bg7 {[%clk 0:02:59]} 4. Bg2 {[%clk 0:02:59]}  Nc6 {[%clk 0:03:00]} 5. Nf3 {[%clk 0:02:59]}  d6 {[%clk 0:03:01]} 6. O-O {[%clk 0:02:59]}  Bf5 {[%clk 0:03:01]} 7. d3 {[%clk 0:02:35]}  Qd7 {[%clk 0:03:01]} 8. Re1 {[%clk 0:02:34]}  Bh3 {[%clk 0:03:01]} 9. Bh1 {[%clk 0:02:35]}  h5 {[%clk 0:03:00]} 10. Ng5 {[%clk 0:02:14]}  h4 {[%clk 0:02:52]} 11. Nxh3 {[%clk 0:02:13]}  hxg3 {[%clk 0:02:49]} 12. hxg3 {[%clk 0:02:07]}  Qxh3 {[%clk 0:02:46]} 13. Bg2 {[%clk 0:02:07]}  Qh2+ {[%clk 0:02:43]} 14. Kf1 {[%clk 0:02:08]}  Nh6 {[%clk 0:02:42]} 15. Bxh6 {[%clk 0:02:07]}  Rxh6 {[%clk 0:02:39]} 16. e3 {[%clk 0:02:07]}  O-O-O {[%clk 0:02:29]} 17. Bxc6 {[%clk 0:02:06]}  bxc6 {[%clk 0:02:28]} 18. Qf3 {[%clk 0:02:06]}  Kd7 {[%clk 0:02:22]} 19. Ke2 {[%clk 0:02:02]}  Qh5 {[%clk 0:02:21]} 20. Rh1 {[%clk 0:01:58]}  Qxf3+ {[%clk 0:02:18]} 21. Kxf3 {[%clk 0:01:59]}  Rxh1 {[%clk 0:02:18]} 22. Rxh1 {[%clk 0:02:00]}  Rb8 {[%clk 0:02:18]} 23. Na4 {[%clk 0:01:54]}  f5 {[%clk 0:02:12]} 24. b3 {[%clk 0:01:54]}  Rh8 {[%clk 0:02:09]} 25. Rxh8 {[%clk 0:01:52]}  Bxh8 {[%clk 0:02:10]} 26. Ke2 {[%clk 0:01:44]}  g5 {[%clk 0:02:07]} 27. f4 {[%clk 0:01:43]}  g4 {[%clk 0:02:06]} 28. Kd2 {[%clk 0:01:43]}  e5 {[%clk 0:02:02]} 29. Nc3 {[%clk 0:01:37]}  exf4 {[%clk 0:02:02]} 30. exf4 {[%clk 0:01:38]}  Bd4 {[%clk 0:02:03]} 31. Ne2 {[%clk 0:01:38]}  Bf2 {[%clk 0:02:02]} 32. Kc3 {[%clk 0:01:38]}  Kc7 {[%clk 0:01:55]} 33. a3 {[%clk 0:01:38]}  a5 {[%clk 0:01:54]} 34. a4 {[%clk 0:01:37]}  Be1+ {[%clk 0:01:49]} 35. Kc2 {[%clk 0:01:38]}  Kd7 {[%clk 0:01:48]} 36. Kd1 {[%clk 0:01:38]}  Bf2 {[%clk 0:01:48]} 37. Kd2 {[%clk 0:01:38]}  Ke6 {[%clk 0:01:44]} 38. Kd1 {[%clk 0:01:38]}  Kf6 {[%clk 0:01:45]} 39. Kd2 {[%clk 0:01:39]}  Kg6 {[%clk 0:01:45]} 40. Kd1 {[%clk 0:01:39]}  Kf6 {[%clk 0:01:43]} 41. Kd2 {[%clk 0:01:39]}  d5 {[%clk 0:01:43]} 42. Kd1 {[%clk 0:00:54]}  Ke6 {[%clk 0:01:36]} 43. Kc2 {[%clk 0:00:54]}  d4 {[%clk 0:01:36]} 44. Kd2 {[%clk 0:00:54]}  Kf6 {[%clk 0:01:36]} 45. Kd1 {[%clk 0:00:54]}  Ke6 {[%clk 0:01:33]} 46. Kc2 {[%clk 0:00:47]}  Kd6 {[%clk 0:01:33]} 47. Kb1 {[%clk 0:00:47]}  Ke6 {[%clk 0:01:33]} 48. Ka2 {[%clk 0:00:48]}  Kd6 {[%clk 0:01:34]} 49. Kb1 {[%clk 0:00:48]}  Ke6 {[%clk 0:01:34]} 50. Kc2 {[%clk 0:00:49]}  Kd6 {[%clk 0:01:35]} 51. Kc1 {[%clk 0:00:50]}  Ke6 {[%clk 0:01:35]} 1/2-1/2


[Site "https://www.chess.com"]

[Event "Titled Tuesday Blitz May 11 2021"]
[White "Petriashvili, Nikoloz"]
[Black "Fernandez, Daniel Howard"]
[WhiteFideId "13611216"]
[BlackFideId "5801605"]
[WhiteElo "2430"]
[BlackElo "2468"]
[Result "1/2-1/2"]
[Round "07"]
[TimeControl "180+1"]
[Date "2021.05.11"]
[WhiteClock "0:00:03"]
[BlackClock "0:00:08"]

1. d4 {[%clk 0:03:00]}  Nf6 {[%clk 0:02:59]} 2. c4 {[%clk 0:02:53]}  e6 {[%clk 0:02:59]} 3. Nf3 {[%clk 0:02:53]}  Bb4+ {[%clk 0:02:58]} 4. Bd2 {[%clk 0:02:53]}  a5 {[%clk 0:02:58]} 5. g3 {[%clk 0:02:53]}  c5 {[%clk 0:02:58]} 6. Bg2 {[%clk 0:02:51]}  cxd4 {[%clk 0:02:57]} 7. Nxd4 {[%clk 0:02:51]}  Nc6 {[%clk 0:02:58]} 8. Bxb4 {[%clk 0:02:40]}  axb4 {[%clk 0:02:57]} 9. O-O {[%clk 0:02:40]}  O-O {[%clk 0:02:55]} 10. Nb5 {[%clk 0:02:40]}  d5 {[%clk 0:02:55]} 11. cxd5 {[%clk 0:02:40]}  exd5 {[%clk 0:02:55]} 12. a3 {[%clk 0:02:36]}  Bg4 {[%clk 0:02:55]} 13. Nd2 {[%clk 0:02:29]}  Re8 {[%clk 0:02:55]} 14. Nf3 {[%clk 0:02:28]}  Qd7 {[%clk 0:02:43]} 15. a4 {[%clk 0:02:27]}  Ne4 {[%clk 0:02:34]} 16. Qd3 {[%clk 0:02:23]}  Nc5 {[%clk 0:02:30]} 17. Qd1 {[%clk 0:02:22]}  b3 {[%clk 0:02:20]} 18. Nbd4 {[%clk 0:02:16]}  Nxa4 {[%clk 0:02:13]} 19. Qxb3 {[%clk 0:02:12]}  Nc5 {[%clk 0:02:14]} 20. Qc2 {[%clk 0:02:10]}  Ne4 {[%clk 0:02:14]} 21. Rxa8 {[%clk 0:02:00]}  Rxa8 {[%clk 0:02:14]} 22. Rc1 {[%clk 0:02:00]}  Rc8 {[%clk 0:02:11]} 23. Qd1 {[%clk 0:01:50]}  Nxd4 {[%clk 0:02:02]} 24. Nxd4 {[%clk 0:01:51]}  Bh5 {[%clk 0:01:54]} 25. Rxc8+ {[%clk 0:01:38]}  Qxc8 {[%clk 0:01:55]} 26. Nc2 {[%clk 0:01:20]}  Qc4 {[%clk 0:01:54]} 27. Bxe4 {[%clk 0:01:15]}  Qxe4 {[%clk 0:01:52]} 28. f3 {[%clk 0:01:09]}  Qe5 {[%clk 0:01:53]} 29. Nd4 {[%clk 0:01:07]}  h6 {[%clk 0:01:49]} 30. Qd2 {[%clk 0:01:05]}  Bg6 {[%clk 0:01:48]} 31. Kf2 {[%clk 0:01:05]}  h5 {[%clk 0:01:45]} 32. Qe3 {[%clk 0:01:05]}  Qd6 {[%clk 0:01:38]} 33. Qc3 {[%clk 0:01:05]}  Kh7 {[%clk 0:01:36]} 34. h4 {[%clk 0:01:03]}  Qd7 {[%clk 0:01:34]} 35. Qe3 {[%clk 0:00:57]}  Qh3 {[%clk 0:01:33]} 36. Qe5 {[%clk 0:00:52]}  Qh2+ {[%clk 0:01:33]} 37. Ke1 {[%clk 0:00:49]}  Qg1+ {[%clk 0:01:25]} 38. Kd2 {[%clk 0:00:50]}  Qa1 {[%clk 0:01:26]} 39. b3 {[%clk 0:00:48]}  Qa5+ {[%clk 0:01:04]} 40. Ke3 {[%clk 0:00:47]}  Qc5 {[%clk 0:01:03]} 41. Kf2 {[%clk 0:00:46]}  b5 {[%clk 0:01:03]} 42. Qe3 {[%clk 0:00:44]}  b4 {[%clk 0:01:03]} 43. Qd2 {[%clk 0:00:43]}  Qb6 {[%clk 0:00:55]} 44. Qe3 {[%clk 0:00:43]}  Qc5 {[%clk 0:00:55]} 45. Qe5 {[%clk 0:00:39]}  f6 {[%clk 0:00:52]} 46. Qe3 {[%clk 0:00:38]}  Qc8 {[%clk 0:00:52]} 47. Kg2 {[%clk 0:00:37]}  Qc5 {[%clk 0:00:50]} 48. Kf2 {[%clk 0:00:35]}  Qc8 {[%clk 0:00:50]} 49. Qe7 {[%clk 0:00:34]}  Kg8 {[%clk 0:00:43]} 50. Qe6+ {[%clk 0:00:29]}  Qxe6 {[%clk 0:00:40]} 51. Nxe6 {[%clk 0:00:30]}  Kf7 {[%clk 0:00:40]} 52. Nd8+ {[%clk 0:00:25]}  Ke8 {[%clk 0:00:39]} 53. Nc6 {[%clk 0:00:25]}  Bc2 {[%clk 0:00:36]} 54. Nd4 {[%clk 0:00:25]}  Bg6 {[%clk 0:00:37]} 55. Ke3 {[%clk 0:00:22]}  Kd7 {[%clk 0:00:37]} 56. Kf4 {[%clk 0:00:22]}  Kd6 {[%clk 0:00:37]} 57. Ke3 {[%clk 0:00:10]}  Kd7 {[%clk 0:00:31]} 58. Kd2 {[%clk 0:00:09]}  Kd6 {[%clk 0:00:31]} 59. e3 {[%clk 0:00:09]}  Kd7 {[%clk 0:00:28]} 60. Ne2 {[%clk 0:00:10]}  Bf7 {[%clk 0:00:25]} 61. Nf4 {[%clk 0:00:10]}  g5 {[%clk 0:00:25]} 62. Nd3 {[%clk 0:00:09]}  d4 {[%clk 0:00:24]} 63. exd4 {[%clk 0:00:08]}  Kd6 {[%clk 0:00:23]} 64. Nxb4 {[%clk 0:00:07]}  Bxb3 {[%clk 0:00:24]} 65. Ke3 {[%clk 0:00:08]}  Be6 {[%clk 0:00:18]} 66. Nd3 {[%clk 0:00:07]}  Bf5 {[%clk 0:00:18]} 67. Nf2 {[%clk 0:00:07]}  Ke6 {[%clk 0:00:17]} 68. Ne4 {[%clk 0:00:07]}  gxh4 {[%clk 0:00:16]} 69. gxh4 {[%clk 0:00:07]}  Bg6 {[%clk 0:00:17]} 70. Ng3 {[%clk 0:00:07]}  Kd5 {[%clk 0:00:17]} 71. Ne2 {[%clk 0:00:07]}  Bf7 {[%clk 0:00:16]} 72. Nf4+ {[%clk 0:00:08]}  Kd6 {[%clk 0:00:17]} 73. Ke4 {[%clk 0:00:09]}  Bb3 {[%clk 0:00:14]} 74. Kf5 {[%clk 0:00:09]}  Bd1 {[%clk 0:00:14]} 75. Nxh5 {[%clk 0:00:07]}  Bxf3 {[%clk 0:00:14]} 76. Nxf6 {[%clk 0:00:07]}  Be2 {[%clk 0:00:12]} 77. Ke4 {[%clk 0:00:07]}  Bd1 {[%clk 0:00:12]} 78. Ke3 {[%clk 0:00:08]}  Ke6 {[%clk 0:00:13]} 79. Ne4 {[%clk 0:00:07]}  Kf5 {[%clk 0:00:12]} 80. h5 {[%clk 0:00:07]}  Bb3 {[%clk 0:00:10]} 81. Nc5 {[%clk 0:00:04]}  Bd5 {[%clk 0:00:10]} 82. Nd3 {[%clk 0:00:03]}  Kg5 {[%clk 0:00:10]} 83. Nf4 {[%clk 0:00:03]}  Bf7 {[%clk 0:00:11]} 84. Ke4 {[%clk 0:00:04]}  Bg8 {[%clk 0:00:10]} 85. Ke5 {[%clk 0:00:03]}  Bf7 {[%clk 0:00:10]} 86. d5 {[%clk 0:00:04]}  Kh6 {[%clk 0:00:08]} 87. Kf6 {[%clk 0:00:04]}  Bxd5 {[%clk 0:00:07]} 88. Nxd5 {[%clk 0:00:03]}  Kxh5 {[%clk 0:00:08]} 1/2-1/2


[Site "https://www.chess.com"]